[Event "5th Sharjah Masters 2022"]
[Site "Sharjah"]
[Date "2022.05.21"]
[Round "1.39"]
[White "Iskandarov, Misratdin"]
[Black "Ammar, Sedrani"]
[Result "1-0"]
[ECO "E18"]
[WhiteElo "2601"]
[BlackElo "2255"]
[Annotator "TA"]
[PlyCount "82"]
[EventDate "2022.05.21"]
[EventType "swiss"]
[EventCountry "UAE"]
[SourceTitle "playchess.com"]
[Source "ChessBase"]
[SourceQuality "1"]
[TimeControl "5400+30"]

{[%evp 18,82,25,15,43,43,44,37,38,0,52,54,49,31,45,52,39,35,50,52,45,28,45,44,61,64,68,51,131,137,122,41,64,81,78,65,68,75,61,60,85,47,106,101,104,85,100,100,119,119,117,117,154,154,175,172,175,140,159,114,190,191,177,167,1814,1751,2105]} 1. c4 {[%emt 0:00:21]} e6 {[%emt 0:01:29]} 2. Nf3 {[%emt 0:00:19]} d5 {[%emt 0:01:03]} 3. g3 {[%emt 0:00:16]} Nf6 {[%emt 0:00:34]} 4. Bg2 {[%emt 0:00:07]} Be7 {[%emt 0:03:33]} 5. O-O {[%emt 0:00:09]} O-O {[%emt 0:02:44]} 6. d4 {[%emt 0:00:26]} b6 {[%emt 0:04:27]} 7. Qc2 {[%emt 0:01:14]} Bb7 {[%emt 0:01:29]} 8. Nc3 {[%emt 0:08:58]} Nbd7 {[%emt 0:04:43]} 9. cxd5 {[%emt 0:02:13]} exd5 {[%emt 0:00:48]} 10. Bf4 {[%emt 0:00:14]} a6 {[%emt 0:08:48] E18: Queen's Indian: Old Main Line (4 g3 Bb7 5 Bg2 Be7 6 0-0 0-0 7 Nc3).} 11. Rac1 {[%emt 0:05:03]} Nh5 {[%emt 0:08:04]} 12. Be3 {[%emt 0:10:15]} Nhf6 {[%emt 0:02:30] White is slightly better.} 13. Bf4 {[%emt 0:16:04]} Nh5 $1 {[%emt 0:00:48]} 14. Bd2 {[%emt 0:00:13]} Nhf6 {[%emt 0:00:54]} 15. Ne5 {[%emt 0:01:09]} Bd6 {[%emt 0:03:39] [#]} 16. Nc4 $1 {[%emt 0:02:58] [#]} Be7 $146 {[%emt 0:09:17]} ({Predecessor:} 16... Bb4 17. Nxd5 Nxd5 18. Bxd5 Bxd5 19. Bxb4 Re8 20. f3 Qf6 21. Qd3 Bb7 22. e4 a5 23. Bc3 Ba6 24. d5 Qg6 25. Qd4 Rad8 {1-0 (42) Nguyen,A (2507)-Duong,T (2320) Ho Chi Minh City 2019}) 17. Ne3 $36 {[%emt 0:02:26][%mdl 2048] White is pushing.} c6 {[%emt 0:02:16]} 18. Nf5 {[%emt 0:00:16]} Re8 $1 {[%emt 0:02:35]} 19. Nxe7+ {[%emt 0:06:06]} Qxe7 {[%emt 0:03:10]} 20. Rfe1 {[%emt 0:00:44]} Nf8 {[%emt 0:03:38]} 21. Na4 {[%emt 0:06:36]} N6d7 {[%emt 0:03:36]} 22. e4 {[%emt 0:09:46]} Ne6 {[%emt 0:02:49]} ({Black should play} 22... dxe4 $14 23. Bxe4 (23. Qxe4 Qxe4 24. Bxe4 Rac8 $14) 23... Qf6) 23. exd5 $16 {[%emt 0:02:26]} cxd5 {[%emt 0:00:09] [#]} 24. Qb3 {[%emt 0:00:57]} (24. Qc7 $1 $16 {[%cal Rc7b7][%mdl 512]} Rab8 25. Nxb6 Nxc7 26. Rxe7 Rxe7 27. Rxc7) 24... Qd8 {[%emt 0:06:18]} 25. Be3 {[%emt 0:04:38] 0x0.002198612b34dp-1022s more active pieces.} b5 {[%emt 0:08:03]} 26. Nc5 {[%emt 0:01:37]} Ndxc5 {[%emt 0:01:00]} 27. dxc5 {[%emt 0:00:07] Black must now prevent c6.} Qd7 {[%emt 0:00:34]} 28. Red1 {[%emt 0:00:45][%cal Rg2d5]} Red8 {[%emt 0:01:59]} 29. Bd4 {[%emt 0:03:19]} Rac8 {[%emt 0:01:55]} (29... a5 $14) 30. Qc3 {[%emt 0:01:05]} Bc6 {[%emt 0:03:09]} 31. Re1 {[%emt 0:02:43][%cal Bd1e1,Be1e3,Be3e5][%mdl 32]} Re8 {[%emt 0:00:35]} 32. Bh3 {[%emt 0:01:03]} Rcd8 {[%emt 0:01:39]} 33. Re3 {[%emt 0:02:47]} Qc7 {[%emt 0:03:27]} 34. Bxe6 {[%emt 0:04:33]} fxe6 {[%emt 0:00:32]} 35. Rce1 {[%emt 0:01:20]} Qf7 {[%emt 0:01:30]} 36. Re5 {[%emt 0:00:08]} h6 {[%emt 0:00:43]} 37. h4 {[%emt 0:00:18][%cal Bh2h4,Bh4h5][%mdl 32]} Rc8 {[%emt 0:00:09]} 38. h5 {[%emt 0:00:26]} Re7 {[%emt 0:01:55]} (38... a5 $16) 39. f4 {[%emt 0:00:58]} Rf8 {[%emt 0:01:09]} 40. Rf1 {[%emt 0:01:20]} Qxf4 $2 (40... a5 41. Qxa5 Ra7) 41. gxf4 $18 {[%emt 0:00:43] And now Qg3 would win.} Ref7 {[%emt 0:02:48] Weighted Error Value: White=0.10 (very precise) /Black=0.17 (very precise)} 1-0

[Event "5th Sharjah Masters 2022"]
[Site "Sharjah"]
[Date "2022.05.22"]
[Round "2.2"]
[White "Sethuraman, S.P."]
[Black "Sarana, Alexey"]
[Result "1/2-1/2"]
[ECO "B92"]
[WhiteElo "2613"]
[BlackElo "2675"]
[Annotator "TA"]
[PlyCount "74"]
[EventDate "2022.05.21"]
[EventType "swiss"]
[EventCountry "UAE"]
[SourceTitle "playchess.com"]
[Source "ChessBase"]
[SourceQuality "1"]
[TimeControl "5400+30"]

{[%evp 17,74,0,8,0,17,15,4,0,0,0,0,0,0,0,16,-13,0,0,16,0,75,75,57,22,39,33,72,75,81,68,96,87,124,110,162,118,118,118,118,118,116,152,151,141,181,108,108,108,90,41,41,41,41,0,0,0,0,0,0]} 1. e4 {[%emt 0:00:20]} c5 {[%emt 0:00:04]} 2. Nf3 {[%emt 0:00:07]} d6 {[%emt 0:00:03]} 3. d4 {[%emt 0:00:18]} cxd4 {[%emt 0:00:03]} 4. Nxd4 {[%emt 0:00:06]} Nf6 {[%emt 0:00:05]} 5. Nc3 {[%emt 0:00:07]} a6 {[%emt 0:00:02]} 6. Be2 {[%emt 0:00:07]} e5 {[%emt 0:00:38]} 7. Nb3 {[%emt 0:00:06]} Be7 {[%emt 0:00:35]} 8. Be3 {[%emt 0:00:11]} Be6 {[%emt 0:00:17]} 9. O-O {[%emt 0:00:15]} O-O {[%emt 0:00:36]} 10. Re1 {[%emt 0:00:07] 10.Qd3 is setting a new trend. B92: Sicilian Najdorf: 6 Be2.} Nbd7 {[%emt 0:03:30]} 11. a4 {[%emt 0:00:19]} Rc8 {[%emt 0:11:12][%cal Oc8c3]} 12. a5 {[%emt 0:00:51]} Rxc3 {[%emt 0:04:16]} 13. bxc3 {[%emt 0:00:06]} Nxe4 {[%emt 0:00:03] [#]} 14. Qd3 $146 {[%emt 0:00:07]} ({Predecessor:} 14. Bf3 Nxc3 15. Qd2 Qc7 16. Bxb7 Qxb7 17. Qxc3 Rc8 18. Qd3 d5 19. Rab1 Qc6 20. Bb6 {0-1 (30) Tomiello,M (2004)-Solon,N (2306) Chess.com INT 2022}) 14... f5 {[%emt 0:00:23]} 15. c4 {[%emt 0:08:53] Against d5} Qc7 {[%emt 0:00:53]} 16. Reb1 {[%emt 0:07:41]} Rc8 {[%emt 0:07:21]} 17. Nd2 {[%emt 0:37:52]} Ndc5 {[%emt 0:06:58]} 18. Qa3 {[%emt 0:00:11]} f4 {[%emt 0:10:18]} (18... Nxd2 $11 {remains equal.} 19. Bxd2 Ne4) 19. Nxe4 $16 {[%emt 0:10:16]} Nxe4 {[%emt 0:01:01]} 20. Qd3 {[%emt 0:09:55]} Nf6 {[%emt 0:05:35]} (20... fxe3 21. Qxe4 exf2+ 22. Kf1 $14) (20... Qxc4 21. Rxb7 fxe3 22. Rxe7 exf2+ 23. Kf1 $16) 21. Ba7 {[%emt 0:00:28]} Ra8 {[%emt 0:12:11]} 22. Bb6 {[%emt 0:00:11]} Qc6 {[%emt 0:00:02]} 23. Re1 {[%emt 0:04:27]} Qd7 {[%emt 0:18:41]} 24. Bf3 {[%emt 0:01:38]} Bf5 {[%emt 0:00:04]} 25. Qd2 {[%emt 0:01:25] White is more active.} g5 {[%emt 0:03:08]} (25... Bg6 $16) 26. c5 {[%emt 0:04:21] aiming for cxd6.} e4 {[%emt 0:00:18]} 27. cxd6 {[%emt 0:05:34]} Qxd6 {[%emt 0:02:38]} 28. Qxd6 {[%emt 0:00:05]} Bxd6 {[%emt 0:00:01]} 29. Bd4 {[%emt 0:00:06]} exf3 {[%emt 0:01:56]} 30. Bxf6 {[%emt 0:00:04] Strongly threatening Rad1.} Kf7 {[%emt 0:00:03] [#]} 31. Be5 {[%emt 0:02:20]} ({Much less strong is} 31. Bxg5 $6 Rg8 32. h4 h6 $14) (31. Rad1 $1 $18 {[%cal Rd1d6]} Ba3 32. Bd8 (32. Bxg5 Rg8 $16)) 31... Bxe5 {[%emt 0:00:23]} 32. Rxe5 {[%emt 0:00:06][%mdl 4096] Endgame KRR-KRB} Kf6 {[%emt 0:00:07] [#]} 33. Rc5 {[%emt 0:01:24]} (33. Ree1 $1 $16) 33... fxg2 $14 {[%emt 0:00:55]} 34. Kxg2 {[%emt 0:00:49]} Rd8 $1 {[%emt 0:01:01]} 35. Ra4 {[%emt 0:05:50] Hoping for Rb4.} Bd7 $1 {[%emt 0:01:48] The position is equal.} 36. Rb4 {[%emt 0:00:44]} Bc6+ {[%emt 0:00:12]} 37. Rxc6+ {[%emt 0:00:12]} bxc6 {[%emt 0:00:29] Weighted Error Value: White=0.12 (very precise) /Black=0.16 (very precise)} 1/2-1/2

[Event "5th Sharjah Masters 2022"]
[Site "Sharjah"]
[Date "2022.05.22"]
[Round "2.3"]
[White "Deac, Bogdan-Daniel"]
[Black "Aryan Chopra"]
[Result "1/2-1/2"]
[ECO "E56"]
[WhiteElo "2671"]
[BlackElo "2609"]
[Annotator "TA"]
[PlyCount "107"]
[EventDate "2022.05.21"]
[EventType "swiss"]
[EventCountry "UAE"]
[SourceTitle "playchess.com"]
[Source "ChessBase"]
[SourceQuality "1"]
[TimeControl "5400+30"]

{[%evp 18,107,0,17,36,41,50,47,71,26,26,31,37,35,33,29,28,29,31,36,29,31,38,39,75,19,25,13,11,0,0,1,15,12,26,31,18,13,40,30,89,0,0,0,0,0,0,0,8,8,12,0,0,0,0,0,0,0,8,8,8,8,8,0,0,0,0,0,8,8,8,0,0,0,0,0,0,0,0,0,11,11,12,12,10,-8,-8,-8,-8,-8,-8,-8]} 1. d4 {[%emt 0:00:49]} Nf6 {[%emt 0:00:04]} 2. c4 {[%emt 0:00:09]} e6 {[%emt 0:00:14]} 3. Nc3 {[%emt 0:01:22]} Bb4 {[%emt 0:00:11]} 4. e3 {[%emt 0:00:44]} O-O {[%emt 0:00:19]} 5. Bd3 {[%emt 0:00:30]} d5 {[%emt 0:00:10]} 6. Nf3 {[%emt 0:00:58]} dxc4 {[%emt 0:00:25]} 7. Bxc4 {[%emt 0:00:08]} c5 {[%emt 0:00:04]} 8. O-O {[%emt 0:00:32]} Nc6 {[%emt 0:00:46]} 9. a3 {[%emt 0:02:00]} Ba5 {[%emt 0:00:05]} 10. Qd3 {[%emt 0:01:50]} Qe7 {[%emt 0:21:44] E56: Nimzo-Indian: Rubinstein: Main Line: 7...Nc6.} 11. Ne4 {[%emt 0:08:39]} Nxe4 {[%emt 0:04:24]} 12. Qxe4 {[%emt 0:00:45]} Bc7 {[%emt 0:00:13] [#] White is slightly better.} 13. dxc5 $146 {[%emt 0:15:26]} ({But not} 13. Bd3 f5 14. Qh4 Qxh4 15. Nxh4 g5 $15) ({Predecessor:} 13. Bd2 Rd8 14. Rad1 Qf6 15. dxc5 Qxb2 16. Ng5 h6 17. Qh7+ Kf8 18. Bc1 Qc3 19. Rxd8+ Bxd8 {1-0 (27) Nemeth,L (1268)-Perez,F (2206) LSS email 2017}) 13... Qxc5 {[%emt 0:00:07]} 14. b4 {[%emt 0:00:05]} Qf5 {[%emt 0:00:08]} 15. Qxf5 {[%emt 0:01:28]} exf5 {[%emt 0:00:06]} 16. Bb2 {[%emt 0:00:06]} Be6 {[%emt 0:00:33]} 17. Rac1 {[%emt 0:24:48][%cal Ba1c1,Bc1c4,Bc4g4][%mdl 32]} Bxc4 {[%emt 0:08:03]} 18. Rxc4 {[%emt 0:00:30]} Bb6 {[%emt 0:00:09]} 19. a4 {[%emt 0:06:37]} a6 {[%emt 0:02:07]} 20. Rfc1 {[%emt 0:04:23]} Rfd8 {[%emt 0:13:05]} 21. g4 {[%emt 0:04:36]} (21. a5 $16 Bc7 22. Nd4) 21... fxg4 $11 {[%emt 0:02:51]} 22. Rxg4 {[%emt 0:01:15]} g6 {[%emt 0:00:05]} 23. b5 {[%emt 0:02:26]} axb5 {[%emt 0:11:13]} 24. axb5 {[%emt 0:00:06]} Ne7 {[%emt 0:01:47]} 25. Bf6 {[%emt 0:02:32]} Re8 {[%emt 0:02:10]} 26. Rd1 {[%emt 0:02:19] Against Nd5} Nf5 $1 {[%emt 0:02:38][%cal Ob6e3]} 27. Rd5 {[%emt 0:08:18] Black must now prevent Rxf5.} h5 {[%emt 0:05:04]} (27... Nh6 $5 {[%cal Rh6g4]} 28. Rc4 Nf5 $14) 28. Rg5 {[%emt 0:02:32]} Nh6 {[%emt 0:10:39] [#]} (28... Nxe3 $2 29. Rxh5 gxh5 30. Rxh5 Ra1+ 31. Bxa1 $18) (28... Ne7 $11) 29. h3 {[%emt 0:04:23] White is more active.} ({Better is} 29. Rge5 $1 $16) 29... Bd8 {[%emt 0:00:44] The position is equal.} 30. Bxd8 {[%emt 0:00:46]} Rexd8 {[%emt 0:00:04]} 31. Rxd8+ {[%emt 0:01:39]} Rxd8 {[%emt 0:00:04][%mdl 4096] Endgame KRN-KRN} 32. Rc5 {[%emt 0:00:49]} Nf5 {[%emt 0:04:48]} 33. Rc7 {[%emt 0:00:26]} Nd6 {[%emt 0:00:05]} 34. Ng5 {[%emt 0:02:05]} Nxb5 {[%emt 0:00:39]} 35. Rxb7 {[%emt 0:00:29]} Nd6 {[%emt 0:00:07]} 36. Ra7 {[%emt 0:00:04]} Rf8 {[%emt 0:01:47]} 37. Kg2 {[%emt 0:00:21]} f6 {[%emt 0:01:35]} 38. Ne6 {[%emt 0:00:41] [#] Threatens to win with Rg7+.} Rf7 {[%emt 0:00:04] Inhibits Rg7+.} 39. Ra8+ {[%emt 0:00:08]} Kh7 {[%emt 0:00:01]} 40. Rd8 {[%emt 0:00:15]} Nf5 {[%emt 0:02:08]} 41. e4 {[%emt 0:00:37]} Ng7 {[%emt 0:00:13]} 42. Nf4 {[%emt 0:01:41]} g5 {[%emt 0:03:26]} 43. Nd5 {[%emt 0:00:28]} Kg6 {[%emt 0:01:44]} 44. Rd6 {[%emt 0:00:30]} Ne8 {[%emt 0:00:14]} 45. Rc6 {[%emt 0:00:14]} Ra7 {[%emt 0:02:33]} 46. h4 {[%emt 0:01:24]} gxh4 {[%emt 0:00:32]} 47. Nf4+ {[%emt 0:00:34]} Kf7 {[%emt 0:00:28]} 48. Nxh5 {[%emt 0:00:22]} Ra5 {[%emt 0:00:22] Hoping for ...Rg5+.} 49. Nf4 {[%emt 0:00:12]} f5 {[%emt 0:00:05]} 50. exf5 {[%emt 0:00:28]} Rxf5 {[%emt 0:00:05]} 51. Ng6 {[%emt 0:00:20]} Rg5+ {[%emt 0:00:10]} 52. Kh3 {[%emt 0:00:02]} Rxg6 {[%emt 0:00:06]} 53. Rxg6 {[%emt 0:00:05]} Kxg6 {[%emt 0:00:05]} 54. Kxh4 {[%emt 0:00:04] Weighted Error Value: White=0.08 (flawless) /Black=0.06 (flawless)} 1/2-1/2

[Event "5th Sharjah Masters 2022"]
[Site "Sharjah"]
[Date "2022.05.22"]
[Round "2.4"]
[White "Sindarov, Javokhir"]
[Black "Gukesh D"]
[Result "1-0"]
[ECO "B31"]
[WhiteElo "2609"]
[BlackElo "2659"]
[Annotator "TA"]
[PlyCount "63"]
[EventDate "2022.05.21"]
[EventType "swiss"]
[EventCountry "UAE"]
[SourceTitle "playchess.com"]
[Source "ChessBase"]
[SourceQuality "1"]
[TimeControl "5400+30"]

{[%evp 9,63,31,33,32,34,31,59,56,61,33,37,38,45,24,34,16,47,49,58,55,41,54,47,52,74,63,37,49,96,107,189,134,172,152,134,194,175,83,82,95,82,51,257,262,1018,973,1884,1763,12376,7382,7679,7679,6283,6270,5433,2183]} 1. e4 {[%emt 1:31:00]} c5 {[%emt 1:31:00]} 2. Nf3 {[%emt 0:00:30]} Nc6 {[%emt 0:00:30]} 3. Bb5 {[%emt 0:00:30]} g6 {[%emt 0:00:30]} 4. Bxc6 {[%emt 0:00:30]} dxc6 {[%emt 0:00:30]} 5. d3 {[%emt 0:00:30][%cal Bd2d3,Bd3d4,Bd4d5][%mdl 32]} Qc7 {[%emt 0:00:30]} 6. O-O {[%emt 0:00:30] B31: Sicilian: 2...Nc6 3 Bb5 g6.} e5 {[%emt 0:00:30]} 7. a4 {[%emt 0:00:30] [#]} a5 $146 {[%emt 0:00:30]} ({Predecessor:} 7... Nf6 8. a5 Nh5 9. Nc3 Be7 10. Be3 O-O 11. Nd2 Rb8 12. Ne2 Nf4 13. Nc4 Be6 {½-½ (46) Giri,A (2764)-Carlsen,M (2862) chess24.com INT 2020}) 8. Na3 {[%emt 0:00:30] White is slightly better.} f6 {[%emt 0:00:30][%cal Bf7f6,Bf6f5,Bf5e4][%mdl 32]} 9. c3 {[%emt 0:00:30]} Be6 {[%emt 0:00:30]} 10. d4 {[%emt 0:00:30]} Rd8 {[%emt 0:00:30]} 11. Be3 {[%emt 0:00:30]} Bg4 {[%emt 0:00:30]} 12. d5 {[%emt 0:00:30]} f5 {[%emt 0:00:30]} 13. h3 $1 {[%emt 0:00:30]} ({Don't play} 13. Bg5 Be7 14. Bxe7 Qxe7 $15) 13... Bxf3 {[%emt 0:00:30]} 14. Qxf3 {[%emt 0:00:30]} fxe4 {[%emt 0:00:30]} 15. Qg3 {[%emt 0:00:30] Hoping for dxc6.} Rxd5 {[%emt 0:00:30]} 16. f3 $1 {[%emt 0:00:30][%cal Bf2f3,Bf3e4][%mdl 32]} Bh6 {[%emt 0:00:30] [#]} 17. Bxh6 {[%emt 0:00:30]} Nxh6 {[%emt 0:00:30]} 18. fxe4 {[%emt 0:00:30]} Rd7 {[%emt 0:00:30]} (18... Rd8 $14) 19. Nc4 $16 {[%emt 0:00:30][%mdl 1024] White has strong compensation.} Nf7 {[%emt 0:00:30]} (19... Rf7 $16) 20. h4 {[%emt 0:00:30]} (20. Rf6 $18) 20... O-O {[%emt 0:00:30]} 21. h5 $1 {[%emt 0:00:30]} Kg7 {[%emt 0:00:30]} (21... g5 22. Rf5 $16) 22. Ne3 {[%emt 0:00:30] White is more active.} Qd8 {[%emt 0:00:30]} 23. Nf5+ {[%emt 0:00:30]} ({Stronger than} 23. hxg6 hxg6 24. Nf5+ Kh7 $11) (23. Rf2 $18 {has better winning chances.}) 23... Kh8 24. hxg6 hxg6 25. Qxg6 $40 {[%emt 0:01:00][%csl Gf5][%cal Rg6g7][%mdl 128] Black needs to defend precisely.} Qg5 $2 {[%emt 0:01:30] [#] This move loses the game for Black.} ({Better is} 25... Ng5 $1 $14) 26. Ne7 $1 $18 {[%emt 0:00:30] Really sharp!} ({Not} 26. Qxg5 Nxg5 27. Ne3 Rg8 $11) 26... Qxe7 {[%emt 0:00:30]} (26... Rxe7 27. Qxg5 Nxg5 28. Rxf8+ Kg7) 27. Rf5 {[%emt 0:00:30][%cal Bf1f5,Bf5g5,Bg5h5][%mdl 32] White is clearly winning.} Ng5 {[%emt 0:00:30]} 28. Rxg5 {[%emt 0:00:30]} Qg7 {[%emt 0:00:30] Prevents Qh6+.} 29. Rh5+ {[%emt 0:00:30]} Kg8 {[%emt 0:00:30]} 30. Qe6+ {[%emt 0:00:30]} Rff7 {[%emt 0:00:30]} 31. Rf1 {[%emt 0:00:30] Intending Rff5 and mate.} Kf8 {[%emt 0:00:30]} 32. Rhf5 {[%emt 0:00:30] Weighted Error Value: White=0.07 (flawless) /Black=0.29 (precise)} 1-0

[Event "5th Sharjah Masters 2022"]
[Site "Sharjah"]
[Date "2022.05.22"]
[Round "2.5"]
[White "Hovhannisyan, Robert"]
[Black "Martirosyan, Haik M."]
[Result "1/2-1/2"]
[ECO "C67"]
[WhiteElo "2607"]
[BlackElo "2652"]
[Annotator "TA"]
[PlyCount "35"]
[EventDate "2022.05.21"]
[EventType "swiss"]
[EventCountry "UAE"]
[SourceTitle "playchess.com"]
[Source "ChessBase"]
[SourceQuality "1"]
[TimeControl "5400+30"]

{[%evp 19,35,16,15,28,20,12,18,18,14,11,9,18,29,0,0,0,22,-2]} 1. e4 {[%emt 0:00:03]} e5 {[%emt 0:00:07]} 2. Nf3 {[%emt 0:00:08]} Nc6 {[%emt 0:00:06]} 3. Bb5 {[%emt 0:00:10]} Nf6 {[%emt 0:00:08]} 4. O-O {[%emt 0:00:22]} Nxe4 {[%emt 0:00:06]} 5. d4 {[%emt 0:00:36]} Nd6 {[%emt 0:00:09]} 6. Bxc6 {[%emt 0:00:21]} dxc6 {[%emt 0:00:08]} 7. dxe5 {[%emt 0:00:04]} Nf5 {[%emt 0:00:08]} 8. Qxd8+ {[%emt 0:00:07]} Kxd8 {[%emt 0:00:04]} 9. Rd1+ {[%emt 0:01:32]} Ke8 {[%emt 0:00:07]} 10. Nc3 {[%emt 0:00:04][%cal Bb1c3,Bc3e2,Be2g3,Bg3f5][%mdl 32]} Be6 {[%emt 0:03:24]} 11. Ng5 {[%emt 0:00:39] C67: Ruy Lopez: Berlin Defence: 4 0-0 Nxe4.} Bc8 {[%emt 0:00:07]} 12. Ne2 {[%emt 0:01:09]} Be7 {[%emt 0:04:02]} 13. Ne4 {[%emt 0:04:50]} Nh4 {[%emt 0:02:20]} 14. b3 {[%emt 0:12:54]} Bf5 {[%emt 0:09:12]} 15. N2g3 {[%emt 0:01:04]} Bg6 {[%emt 0:00:10] [#]} 16. Bb2 $146 {[%emt 0:05:36][%cal Oe5e6]} ({Predecessor:} 16. Bf4 Rd8 17. e6 Nf5 18. exf7+ Kxf7 19. Ng5+ Bxg5 20. Bxg5 Rxd1+ 21. Rxd1 h6 22. Bf4 Re8 23. c3 Nxg3 24. hxg3 {½-½ (24) Tkachenko,I (2282)-Begliy,M (2434) ICCF email 2016}) 16... Nf5 {[%emt 0:03:00]} 17. c4 {[%emt 0:16:58]} h5 {[%emt 0:06:53]} 18. Nxf5 {[%emt 0:03:24] An interesting draw.  Weighted Error Value: White=0.05 (flawless) /Black=0.02 (flawless)} 1/2-1/2

[Event "5th Sharjah Masters 2022"]
[Site "Sharjah"]
[Date "2022.05.22"]
[Round "2.6"]
[White "Gupta, Abhijeet"]
[Black "Sargsyan, Shant"]
[Result "1-0"]
[ECO "E00"]
[WhiteElo "2606"]
[BlackElo "2641"]
[Annotator "TA"]
[PlyCount "79"]
[EventDate "2022.05.21"]
[EventType "swiss"]
[EventCountry "UAE"]
[SourceTitle "playchess.com"]
[Source "ChessBase"]
[SourceQuality "1"]
[TimeControl "5400+30"]

{[%evp 9,79,0,-6,-10,-19,-22,-9,-56,7,0,5,0,4,0,31,17,28,5,37,43,31,31,37,49,31,38,32,34,48,-32,-47,-40,-42,-35,8,6,16,18,18,12,20,19,8,11,97,110,94,18,67,58,68,67,58,62,108,112,115,118,125,115,217,212,200,202,214,213,153,97,195,193,29995,29996]} 1. d4 {[%emt 0:00:03]} Nf6 {[%emt 0:01:14]} 2. c4 {[%emt 0:00:06]} e6 {[%emt 0:00:11]} 3. g3 {[%emt 0:00:51]} Bb4+ {[%emt 0:00:36]} 4. Nd2 {[%emt 0:00:21]} c5 {[%emt 0:00:16]} 5. Ngf3 {[%emt 0:02:46]} cxd4 {[%emt 0:02:06]} 6. a3 {[%emt 0:00:23] E00: Catalan Bogo-Indian (3 g3 Bb4+).} Be7 {[%emt 0:02:31]} 7. Nxd4 {[%emt 0:01:25]} Nc6 {[%emt 0:01:18] [#]} 8. N4f3 $146 {[%emt 0:00:50]} (8. Nxc6 $11 bxc6 9. Bg2) ({Predecessor:} 8. N2b3 d5 9. Bg2 O-O 10. cxd5 exd5 11. O-O Re8 12. Bf4 Bg4 13. Rc1 Rc8 14. h3 {0-1 (39) Vypkhaniuk,I (2412)-Novikov,E (2276) Chess.com INT 2021}) 8... b6 {[%emt 0:03:27]} (8... d5 $15) 9. Bg2 $11 {[%emt 0:00:37]} Bb7 {[%emt 0:00:09]} 10. O-O {[%emt 0:01:15]} O-O {[%emt 0:00:13]} 11. b4 {[%emt 0:00:54]} d5 {[%emt 0:02:29]} 12. Bb2 {[%emt 0:01:44]} Rc8 {[%emt 0:08:35]} 13. cxd5 {[%emt 0:07:09]} Nxd5 {[%emt 0:00:44]} 14. e4 {[%emt 0:00:31]} Nf6 {[%emt 0:02:42]} 15. Qe2 {[%emt 0:09:12]} Qd7 {[%emt 0:03:21]} 16. Rfd1 {[%emt 0:07:51]} Rfd8 {[%emt 0:00:41]} 17. e5 {[%emt 0:02:17]} Nd5 {[%emt 0:00:44]} 18. Ne4 {[%emt 0:00:11][%cal Oe4f6] Threatens to win with Nf6+!} Qe8 {[%emt 0:02:56]} 19. Nd6 {[%emt 0:01:23]} (19. Rac1 $14) 19... Bxd6 $15 {[%emt 0:01:57]} 20. exd6 {[%emt 0:00:14]} Rxd6 {[%emt 0:01:13]} 21. Ng5 {[%emt 0:00:47][%cal Bf3g5,Bg5e6,Be6d4][%mdl 32]} f6 {[%emt 0:07:43] [#]} (21... Qe7 $5 {[%cal Re7g5]} 22. Nf3 (22. Qh5 h6 $15) 22... f6 $15) 22. Nxe6 {[%emt 0:09:52]} Nd8 {[%emt 0:06:03] Pair of Knights!} (22... Ne5 23. f4) 23. Nd4 {[%emt 0:00:17][%cal Re2e8]} Qxe2 {[%emt 0:00:55]} 24. Nxe2 {[%emt 0:00:04][%cal Oe2c3] Nc3! is the strong threat.} Rc2 {[%emt 0:08:28][%csl LRb2,LRe2] [#] Against Nc3} 25. Nc3 {[%emt 0:01:20][%cal Rc3d5]} Rxb2 {[%emt 0:00:48]} 26. Nxd5 {[%emt 0:04:57]} Bxd5 {[%emt 0:02:51]} (26... Nf7 $11 {remains equal.}) 27. Bxd5+ $16 {[%emt 0:01:27]} Kf8 {[%emt 0:00:19] [#]} 28. Be4 {[%emt 0:01:05]} (28. Bg8 $1 $16 Rxd1+ (28... Rdd2 29. Rxd2) 29. Rxd1) 28... Nf7 {[%emt 0:02:45]} (28... Ra2 $1 $11 {is more appropriate.}) 29. Bxh7 $14 {[%emt 0:02:58]} Rxd1+ {[%emt 0:09:45]} 30. Rxd1 {[%emt 0:00:20][%mdl 4096] Endgame KRB-KRN} Ra2 {[%emt 0:00:03]} 31. Rd3 {[%emt 0:07:11]} a5 {[%emt 0:01:58]} (31... Ng5 $14 {is superior.}) 32. bxa5 $16 {[%emt 0:02:45]} bxa5 {[%emt 0:00:04]} 33. Rc3 {[%emt 0:03:58]} Ne5 {[%emt 0:02:54]} 34. f4 {[%emt 0:01:14]} Nd7 {[%emt 0:10:33]} (34... Nf7 $16 35. Bg6 Ra1+ 36. Kg2 Nd6) 35. Bf5 $18 {[%emt 0:01:51]} Nb6 {[%emt 0:00:07]} 36. Be6 {[%emt 0:02:36]} Ra1+ {[%emt 0:00:09]} 37. Kg2 {[%emt 0:00:17]} Na4 {[%emt 0:00:06]} 38. Re3 {[%emt 0:03:06]} (38. Rc7 $142) 38... Nc5 {[%emt 0:00:17] [#]} (38... g6 $16 {is a better defense.} 39. Kf3 f5) 39. Bf5 $1 {[%emt 0:00:44] White wants to mate with Bg6.} a4 $2 {[%emt 0:01:35] [#]} (39... Rd1 $18 40. Bg6 Rd8) 40. Bg6 $1 {[%emt 0:01:00] Weighted Error Value: White=0.12 (very precise) /Black=0.42} 1-0